bitfinex/quotes_ETHUSD_20240721
["timestamp","ask_amount","ask_price","bid_price","bid_amount"]
[1721540466253,3.74589909,3508.6,3508.1,3.09273592]
[1721540466451,2.85015,3508.6,3508.1,3.09273592]
[1721540466647,2.85015,3508.6,3508.2,0.76288043]
[1721540467051,2.85015,3508.6,3508.3,0.11711168]
[1721540467249,0.89574909,3508.7,3508.3,0.11711168]
[1721540467555,6.74583909,3508.7,3508.4,0.11708061]
[1721540467779,6.74583909,3508.7,3508.1,2.282]
[1721540467991,6.74583909,3508.7,3508.2,0.11714274]
[1721540468893,0.89574909,3508.6,3508.2,0.11714274]
[1721540472608,0.89574909,3508.5,3508.2,0.11714274]
[1721540478096,3.74597909,3508.5,3508.2,0.11714274]
[1721540478299,2.85038,3508.3,3508.2,0.11714274]
[1721540478502,5.14186798,3508.3,3508.2,0.11714274]
[1721540478707,2.85052,3508.2,3507.6,7.45]
[1721540478886,0.89589199,3508.1,3507.6,7.45]
[1721540479216,3.74643199,3508.1,3507.6,7.45]
[1721540479708,0.89589199,3508.0,3507.6,7.45]
[1721540479921,3.74663199,3507.9,3507.6,7.45]
[1721540480273,2.85079,3507.8,3507.6,7.45]
[1721540480890,0.89589199,3507.9,3507.6,7.45]
[1721540481277,3.74661199,3507.9,3507.6,7.45]
[1721540481498,0.89589199,3507.9,3507.7,2.3812]
[1721540481697,3.74643199,3508.1,3507.7,2.3812]
[1721540482015,0.89589199,3508.0,3507.7,2.3812]
[1721540482709,3.74653199,3508.0,3507.7,2.3812]
[1721540484524,2.85064,3508.0,3507.7,2.3812]
[1721540484820,3.74653199,3508.0,3507.7,2.3812]
[1721540487482,0.89589199,3508.0,3507.7,2.3812]
[1721540490101,0.89589199,3508.0,3507.5,2.4512]
[1721540490307,0.89589199,3507.9,3507.8,0.11718617]
[1721540490507,0.89589199,3507.9,3507.5,2.4512]
[1721540490703,0.89589199,3507.9,3507.8,0.11718617]
[1721540490910,0.89589199,3507.9,3507.5,2.4512]
[1721540491110,0.89589199,3508.0,3507.8,0.11718617]
[1721540491305,0.89589199,3508.0,3507.5,2.4512]
[1721540491511,0.89589199,3507.9,3507.5,2.4512]
[1721540491710,0.89589199,3507.9,3507.5,5.30223]
[1721540491906,0.89589199,3508.0,3507.6,0.614523]
[1721540492933,0.89589199,3508.0,3507.7,2.85086]
[1721540493133,0.89589199,3508.2,3508.0,2.85057]
[1721540493336,0.89589199,3508.4,3508.0,2.85057]
[1721540493637,0.89589199,3508.5,3508.0,2.85057]
[1721540493833,0.89589199,3508.5,3508.1,0.899554]
[1721540495335,0.89589199,3508.5,3508.1,3.350754]
[1721540495512,0.89589199,3508.6,3508.1,3.350754]
[1721540495713,0.89589199,3508.5,3508.1,3.350754]
[1721540497021,0.89589199,3508.5,3508.1,6.201294]
[1721540497331,0.89589199,3508.6,3508.3,0.843]
[1721540497501,0.89589199,3508.7,3508.4,2.8503]
[1721540497828,0.89589199,3508.8,3508.3,0.843]
[1721540498003,0.89589199,3508.8,3508.4,2.85029]
[1721540498202,0.89589199,3508.8,3508.4,3.84872894]
[1721540501741,0.89589199,3508.7,3508.4,0.99843894]
[1721540502051,0.89589199,3508.7,3508.2,2.8504]
[1721540504663,2.85014,3508.6,3508.1,2.4512]
[1721540504952,6.15778199,3508.6,3507.8,2.85073]
[1721540505255,0.89589199,3508.4,3507.9,0.1170618]
[1721540505742,0.89589199,3508.4,3507.8,3.69373]
[1721540506046,0.89589199,3508.4,3507.9,1.0625001]
[1721540506617,0.89589199,3508.5,3507.9,3.9132001]
[1721540506824,0.89589199,3508.5,3508.0,2.85061]
[1721540507019,3.74612199,3508.5,3508.1,0.11699965]
[1721540507221,0.89589199,3508.4,3507.8,2.85075]
[1721540507433,0.89589199,3508.4,3507.9,0.11704776]
[1721540507634,3.74612199,3508.5,3507.8,3.7961993]
[1721540507958,3.74612199,3508.5,3507.9,0.11704776]
[1721540508367,3.74612199,3508.5,3507.9,0.96004776]
[1721540509147,0.89589199,3508.5,3507.9,3.81071776]
[1721540509344,0.89589199,3508.5,3508.0,0.99021171]
[1721540509657,0.89589199,3508.5,3508.1,0.11698562]
[1721540512990,0.89589199,3508.6,3508.1,0.11698562]
[1721540513133,0.89589199,3508.5,3508.1,0.11698562]
[1721540513341,0.89589199,3508.5,3508.1,3.81050562]
[1721540513550,0.89589199,3508.6,3508.2,3.23144056]
[1721540513777,0.89589199,3508.7,3508.2,5.70924056]
[1721540513952,0.89589199,3508.7,3508.3,0.11679972]
[1721540514353,0.89589199,3508.7,3508.2,5.70924056]
[1721540514579,0.89589199,3508.7,3508.4,0.11676865]
[1721540514763,0.89589199,3508.7,3508.3,1.05707578]
[1721540514965,0.89589199,3508.6,3508.5,0.11673759]
[1721540515167,0.89589199,3508.6,3508.3,0.94027606]
[1721540515168,0.89589199,3508.6,3508.4,0.11676865]
[1721540515345,0.89589199,3508.6,3508.5,0.11673504]
[1721540516084,0.89589199,3508.7,3508.2,2.4778]
[1721540516273,0.89589199,3508.7,3508.5,0.11673504]
[1721540516581,0.89589199,3508.7,3508.2,5.32825]
[1721540516787,0.89589199,3508.7,3508.6,0.1167027]
[1721540517015,0.89589199,3508.8,3508.3,3.69337]
[1721540517168,0.89589199,3508.8,3508.6,0.1167027]
[1721540517483,7.04436265,3509.0,3508.7,0.11667164]
[1721540517484,0.89589199,3508.9,3508.7,0.11667164]
[1721540517847,0.89589199,3508.9,3508.3,3.69337]
[1721540518046,0.89589199,3508.9,3508.4,0.11676482]
[1721540518559,0.89589199,3508.9,3508.4,2.96704482]
[1721540519260,0.89589199,3508.9,3508.5,0.62878448]
[1721540519555,5.84975,3509.1,3508.5,0.62878448]
[1721540519755,5.84975,3509.1,3508.6,0.1167027]
[1721540520683,5.84975,3509.1,3508.4,2.85028]
[1721540520879,0.89600891,3508.9,3508.7,0.11667164]
[1721540521088,0.89600891,3508.9,3508.4,2.85028]
[1721540521378,0.89600891,3508.9,3508.8,0.11664058]
[1721540521582,0.89600891,3508.9,3508.4,2.85028]
[1721540522080,3.74591891,3508.9,3508.5,0.11673376]
[1721540522447,3.74591891,3508.9,3508.3,0.843]
[1721540522448,0.89600891,3508.8,3508.3,0.843]
[1721540522649,0.89600891,3508.8,3508.4,0.11676482]
[1721540522873,0.89600891,3508.8,3508.2,5.32824]
[1721540523080,0.89600891,3508.8,3508.5,0.1167038]
[1721540523315,0.89600891,3508.8,3508.2,6.230425]
[1721540523465,0.89600891,3508.8,3508.6,0.11667274]
[1721540523803,0.89600891,3508.8,3508.2,5.32824]
[1721540524301,0.89600891,3508.8,3508.3,0.11677422]
[1721540524593,0.89600891,3508.8,3508.3,4.60723242]
[1721540524785,0.89600891,3508.8,3508.4,0.11674316]
[1721540524985,2.84991,3508.9,3508.4,0.11674316]
[1721540524986,3.74591891,3508.9,3508.4,0.11674316]
[1721540525185,0.89600891,3508.8,3508.4,0.11674316]
[1721540525365,3.74591891,3508.9,3508.4,0.11674316]
[1721540525766,0.89600891,3508.8,3508.4,0.11674316]
[1721540529694,0.89600891,3508.7,3508.4,0.11674316]
[1721540530502,4.04458855,3508.9,3508.4,0.11674316]
[1721540530503,0.89600891,3508.8,3508.4,0.74553448]
[1721540532625,0.89600891,3508.7,3508.4,0.11674316]
[1721540533310,0.89600891,3508.8,3508.4,0.11674316]
[1721540533632,0.89600891,3508.7,3508.4,0.11674316]
[1721540536427,0.89600891,3508.6,3508.4,0.11674316]
[1721540538490,0.89600891,3508.5,3508.4,0.11674316]
[1721540539199,0.89600891,3508.6,3508.4,3.85013574]
[1721540539696,0.89600891,3508.6,3508.5,8.83984]
[1721540539888,0.89600891,3508.7,3508.6,5.70026]
[1721540540087,0.89600891,3508.9,3508.8,5.14637]
[1721540540448,0.89600891,3509.2,3508.8,5.98937]
[1721540540592,0.89600891,3509.3,3509.0,3.69281]
[1721540540787,1.19467855,3509.4,3509.0,3.69281]
[1721540540788,0.89600891,3509.2,3509.0,3.69281]
[1721540541103,0.89600891,3509.2,3509.1,0.11649432]
[1721540541298,0.89600891,3509.3,3509.1,0.11649432]
[1721540541814,0.89600891,3509.2,3509.1,0.11649432]
[1721540542035,0.89600891,3509.2,3509.1,0.62541943]
[1721540542320,0.89600891,3509.3,3509.1,0.62541943]
[1721540545423,1.19467855,3509.5,3509.1,0.62541943]
[1721540545615,1.19467855,3509.5,3509.1,0.11649432]
[1721540546425,4.04401855,3509.6,3509.1,0.11649432]
[1721540546611,1.19467855,3509.5,3509.1,0.11649432]
[1721540547126,4.04401855,3509.6,3509.1,0.11649432]
[1721540548625,4.04401855,3509.6,3509.0,2.8498]
[1721540548943,4.04401855,3509.6,3509.1,0.11645732]
[1721540549615,2.84946,3509.5,3509.1,0.11645732]
[1721540549999,2.84946,3509.5,3508.9,2.84986]
[1721540550227,2.84946,3509.5,3509.2,0.11642627]
[1721540550407,2.84946,3509.5,3508.9,2.84986]
[1721540551026,2.84946,3509.5,3509.0,0.11648838]
[1721540551494,5.12746,3509.5,3509.0,0.11648838]
[1721540551687,6.32213855,3509.5,3508.8,2.2964]
[1721540551892,6.32213855,3509.5,3508.9,0.11647161]
[1721540552205,5.12746,3509.5,3508.9,0.11647161]
[1721540552550,6.32213855,3509.5,3508.9,0.11647161]
[1721540552691,5.12746,3509.5,3508.9,0.11647161]
[1721540553100,6.32213855,3509.5,3508.9,0.11647161]
[1721540553328,5.12746,3509.5,3508.9,0.11647161]
[1721540554308,0.89502123,3509.4,3508.9,0.11647161]
[1721540554541,0.89502123,3509.3,3508.9,0.11647161]
[1721540555127,0.89502123,3509.4,3508.9,0.11647161]
[1721540555503,0.89502123,3509.3,3508.9,0.11647161]
[1721540557527,2.84966,3509.2,3508.9,0.11647161]
[1721540557701,3.74468123,3509.2,3508.5,6.012]
[1721540557909,3.74468123,3509.2,3509.0,0.11645012]
[1721540558229,3.74468123,3509.2,3508.5,7.3582]
[1721540558420,3.74468123,3509.2,3509.1,0.11641907]
[1721540558620,3.74468123,3509.2,3508.5,7.3582]
[1721540559131,3.74468123,3509.2,3508.6,0.11657436]
[1721540559307,3.74468123,3509.2,3508.6,3.9992198]
[1721540559511,0.89502123,3509.2,3508.6,3.9992198]
[1721540560538,0.89502123,3509.2,3508.7,0.843]
[1721540560831,0.89502123,3509.2,3508.7,3.8095384]
[1721540561035,0.89502123,3509.3,3508.9,2.3188]
[1721540561449,0.89502123,3509.3,3509.0,0.11645522]
[1721540562061,0.89502123,3509.3,3509.0,0.47508654]
[1721540562707,0.89502123,3509.2,3509.0,0.47508654]
[1721540564210,0.89502123,3509.2,3509.0,0.11645522]
[1721540565165,0.89502123,3509.1,3508.6,3.88264544]
[1721540565453,0.89502123,3509.0,3508.6,3.88264544]
[1721540566421,0.89502123,3509.1,3508.6,3.88264544]
[1721540566922,0.89502123,3509.0,3508.6,3.88264544]
[1721540567243,0.89502123,3509.0,3508.7,0.83906454]
[1721540569526,0.89502123,3509.0,3508.5,3.1618]
[1721540569724,0.89502123,3509.0,3508.5,6.01201]
[1721540572226,0.89502123,3508.9,3508.5,3.1618]
[1721540572428,3.74492123,3508.9,3508.5,0.843]
[1721540572660,3.74499123,3508.8,3508.3,3.1422]
[1721540572826,3.74499123,3508.8,3508.3,4.486474]
[1721540573025,3.74499123,3508.8,3508.3,3.1422]
[1721540573258,0.89502123,3508.8,3508.3,3.1422]
[1721540575056,0.89502123,3508.7,3508.3,3.1422]
[1721540579840,0.89502123,3508.8,3508.5,0.843]
[1721540580047,0.89502123,3508.8,3508.5,3.6932]
[1721540580350,0.89502123,3508.8,3508.6,0.11659794]
[1721540580688,0.89502123,3508.9,3508.8,2.84997]
[1721540580853,0.89502123,3509.1,3508.9,2.84988]
[1721540581192,0.89502123,3509.1,3509.0,1.00799519]
[1721540581478,0.89502123,3509.2,3509.0,1.00799519]
[1721540581681,0.89502123,3509.2,3509.0,0.11649219]
[1721540581884,0.89502123,3509.2,3508.9,0.843]
[1721540582038,0.89502123,3509.2,3509.1,0.11646114]
[1721540582238,0.89502123,3509.2,3509.0,0.11649219]
[1721540582495,0.89589574,3509.1,3508.8,2.84996]
[1721540582786,0.89589574,3509.1,3508.8,3.741486]
[1721540589346,0.89589574,3509.1,3508.9,0.843]
[1721540589545,0.89589574,3509.2,3508.9,3.69288]
[1721540589749,6.95694319,3509.8,3508.8,0.891526]
[1721540589750,0.89589574,3509.4,3509.1,0.843]
[1721540590079,1.19467855,3509.6,3509.5,2.4185]
[1721540590080,0.89589574,3509.6,3509.5,2.4185]
[1721540590377,0.89589574,3509.7,3509.5,2.4185]
[1721540591162,0.89589574,3509.7,3509.4,2.84948]
[1721540591360,0.89589574,3509.6,3509.3,3.2615]
[1721540591564,0.89589574,3509.6,3509.3,0.843]
[1721540591775,0.89589574,3509.5,3509.2,2.84965]
[1721540592067,0.89589574,3509.4,3508.9,3.2615]
[1721540592465,0.89589574,3509.3,3508.9,3.2615]
[1721540592668,0.89589574,3509.3,3508.8,0.891526]
[1721540592885,0.89589574,3509.2,3508.7,3.69304]
[1721540594016,0.89589574,3509.2,3508.4,7.45]
[1721540594017,5.10368,3509.0,3508.4,7.45]
[1721540594156,2.84991,3508.9,3508.4,8.293]
[1721540594354,3.14969574,3509.0,3508.4,8.293]
[1721540594790,3.14969574,3509.0,3508.4,0.843]
[1721540595301,3.14969574,3509.0,3508.5,0.11659076]
[1721540595595,0.89589574,3509.0,3508.6,0.843]
[1721540596118,0.89589574,3509.0,3508.7,0.11653756]
[1721540599122,0.89589574,3509.1,3508.8,0.843]
[1721540599420,0.89589574,3509.1,3508.9,0.11638101]
[1721540599575,0.89589574,3509.2,3508.9,2.96627101]
[1721540599781,0.89589574,3509.1,3508.7,2.85001]
[1721540600015,0.89589574,3509.1,3509.0,0.11634996]
[1721540600302,0.89589574,3509.1,3508.7,2.85001]
[1721540600508,0.89600315,3509.1,3509.0,0.11634996]
[1721540600664,0.89600315,3509.1,3508.7,2.85001]
[1721540601065,0.89600315,3509.1,3508.8,0.116332]
[1721540601461,0.89600315,3509.1,3508.7,2.85001]
[1721540601694,0.89600315,3509.1,3508.9,0.11630094]
[1721540601874,0.89600315,3509.1,3508.8,0.116332]
[1721540602121,0.89600315,3509.1,3509.0,0.11626989]
[1721540602590,0.89600315,3509.1,3508.7,2.85001]
[1721540602757,0.89600315,3509.1,3509.0,0.11626989]
[1721540603119,0.89600315,3509.1,3508.7,2.85001]
[1721540603279,0.89600315,3509.1,3509.0,0.11626989]
[1721540603902,0.89600315,3509.1,3508.7,2.85001]
[1721540604403,0.89600315,3509.1,3508.8,0.116332]
[1721540604757,0.89600315,3509.1,3508.7,2.85001]
[1721540604959,0.89600315,3509.1,3508.9,0.11630094]
[1721540605211,0.89600315,3509.1,3508.8,0.116332]
[1721540605505,0.89600315,3509.1,3509.0,0.11626989]
[1721540605712,0.89600315,3509.1,3508.9,0.11630094]
[1721540605915,0.89600315,3509.2,3509.0,0.11626989]
[1721540606412,0.89600315,3509.2,3509.1,0.11623884]
[1721540606906,0.89600315,3509.2,3508.7,2.85001]
[1721540607113,0.89600315,3509.2,3509.1,0.11623884]
[1721540607533,0.89600315,3509.2,3508.8,2.84996]
[1721540607737,0.89600315,3509.2,3508.9,0.11630094]
[1721540612008,0.89600315,3509.1,3508.9,0.11630094]
[1721540612408,0.89600315,3509.1,3508.7,2.85003]
[1721540612641,0.89600315,3509.1,3509.0,0.11627179]
[1721540612795,0.89600315,3509.1,3508.7,4.475434]
[1721540612991,0.89600315,3509.1,3509.0,0.11627179]
[1721540613195,0.89600315,3509.1,3508.7,4.475434]
[1721540613464,0.89600315,3509.1,3509.0,0.11627179]
[1721540613603,0.89600315,3509.1,3508.7,2.85003]
[1721540613809,0.89600315,3509.1,3509.0,0.11627179]
[1721540614008,0.89600315,3509.1,3508.7,2.85003]
[1721540614204,0.89600315,3509.1,3509.0,0.11627179]
[1721540614435,0.89600315,3509.1,3508.7,2.85003]
[1721540614635,0.89600315,3509.1,3509.0,0.11627179]
[1721540614852,0.89600315,3509.1,3508.7,2.85003]
[1721540615037,0.89600315,3509.1,3509.0,0.11627179]
[1721540615215,0.89600315,3509.1,3508.7,2.85003]
[1721540615414,0.89600315,3509.1,3509.0,0.11627179]
[1721540615616,0.89600315,3509.1,3508.7,2.85003]
[1721540615831,0.89600315,3509.1,3509.0,0.11627179]
[1721540616322,0.89600315,3509.1,3508.7,2.85003]
[1721540616523,0.89600315,3509.1,3508.8,0.1163339]
[1721540616722,0.89600315,3509.1,3508.7,4.475434]
[1721540616937,0.89600315,3509.1,3508.8,0.1163339]
[1721540617161,0.89600315,3509.1,3508.7,4.475434]
[1721540617378,0.89600315,3509.1,3508.8,0.1163339]
[1721540617733,0.89600315,3509.1,3508.7,4.475434]
[1721540617934,0.89600315,3509.1,3508.8,1.1592783]
[1721540622635,0.89600315,3509.0,3508.8,1.1592783]
[1721540627380,0.89600315,3509.0,3508.8,0.1163339]
[1721540627547,0.89600315,3508.9,3508.8,0.1163339]
[1721540627884,0.89600315,3508.9,3508.7,4.475434]
[1721540628038,0.89600315,3508.9,3508.8,0.11633583]
[1721540628498,0.89600315,3508.9,3508.7,1.625404]
[1721540628642,0.89600315,3509.0,3508.8,0.11633583]
[1721540629089,0.89600315,3509.0,3508.7,1.625404]
[1721540629288,0.89600315,3509.0,3508.9,0.11630478]
[1721540629454,0.89600315,3509.0,3508.8,0.11633583]
[1721540629659,0.89600315,3508.9,3508.6,3.69313]
[1721540629861,0.89600315,3508.9,3508.7,1.346453]
[1721540632317,0.89600315,3509.0,3508.7,1.346453]
[1721540634639,0.89600315,3509.0,3508.6,0.843]
[1721540634925,0.89600315,3508.9,3508.6,0.843]
[1721540635900,0.89600315,3508.8,3508.4,8.293]
[1721540636105,0.89600315,3508.7,3508.2,0.843]
[1721540636309,0.89600315,3508.6,3508.2,0.843]
[1721540636624,3.74615315,3508.6,3508.2,0.843]
[1721540636828,0.89600315,3508.6,3508.2,0.843]
[1721540637178,0.89600315,3508.5,3508.2,0.843]
[1721540637382,0.89600315,3508.6,3508.2,0.843]
[1721540638123,0.89600315,3508.5,3508.2,0.843]
[1721540638329,0.89600315,3508.6,3508.2,0.843]
[1721540638480,0.89600315,3508.5,3508.2,0.843]
[1721540638680,0.89600315,3508.6,3508.2,0.843]
[1721540640187,0.89600315,3508.6,3508.3,0.11264837]
[1721540640720,0.89600315,3508.6,3508.2,0.843]
[1721540641023,0.89600315,3508.6,3508.3,0.11264837]
[1721540641526,0.89600315,3508.6,3508.2,0.843]
[1721540641719,0.89600315,3508.6,3508.4,0.1126173]
[1721540642030,0.89600315,3508.6,3508.5,0.11258624]
[1721540642409,0.89600315,3508.6,3508.1,0.843]
[1721540642589,0.89600315,3508.6,3508.5,0.11258624]
[1721540642795,0.89600315,3508.6,3508.1,0.843]
[1721540642997,0.89600315,3508.6,3508.5,0.11258624]
[1721540643331,0.89600315,3508.6,3508.1,0.843]
[1721540643492,0.89600315,3508.6,3508.5,0.11258624]
[1721540643692,0.89600315,3508.6,3508.1,0.843]
[1721540643933,0.89600315,3508.6,3508.5,0.11258624]
[1721540644133,0.89600315,3508.6,3508.1,0.843]
[1721540644638,0.89600315,3508.6,3508.2,0.11267943]
[1721540645214,2.85006,3508.7,3508.2,0.11267943]
[1721540646226,2.84981,3509.0,3508.3,0.843]
[1721540646429,2.84981,3509.0,3508.2,0.81537407]
[1721540646430,2.2719,3509.2,3508.5,0.843]
[1721540647016,2.2719,3509.2,3508.6,0.11258004]
[1721540647513,2.84983,3509.0,3508.6,0.11258004]
[1721540649362,2.84983,3509.0,3508.4,2.3985]
[1721540649363,0.8967472,3508.8,3508.4,2.3985]
[1721540649522,0.8967472,3508.8,3508.5,0.1125387]
[1721540650234,0.8967472,3508.8,3508.3,3.69337]
[1721540650458,0.8967472,3508.8,3508.6,0.11250764]
[1721540650755,0.8967472,3508.8,3508.7,0.11243878]
[1721540651151,0.8967472,3508.8,3508.3,3.69337]
[1721540651471,0.8967472,3508.8,3508.4,2.96278863]
[1721540651621,0.8967472,3508.8,3508.5,0.96106433]
[1721540651963,0.8967472,3508.8,3508.6,0.11241784]
[1721540661151,0.8967472,3508.7,3508.6,0.11241784]
[1721540661333,1.19566293,3508.8,3508.3,0.843]
[1721540661539,0.89679931,3508.7,3508.4,0.11226977]
[1721540662275,0.89679931,3508.7,3508.4,2.96255977]
[1721540666275,0.89679931,3508.6,3508.4,2.96255977]
[1721540667680,0.89679931,3508.7,3508.4,2.96255977]
[1721540671024,0.89679931,3508.6,3508.4,2.96255977]
[1721540672386,0.89679931,3508.6,3508.4,3.85333175]
[1721540673190,0.89679931,3508.6,3508.4,2.96255977]
[1721540674543,2.4595,3508.5,3508.4,0.11226977]
[1721540674704,0.89679931,3508.6,3508.4,0.11226977]
[1721540674705,4.04583293,3508.6,3508.4,0.11226977]
[1721540675028,4.04583293,3508.6,3508.1,0.843]
[1721540675195,0.89687856,3508.4,3508.1,0.843]
[1721540676529,0.89687856,3508.5,3508.1,0.843]
[1721540677403,0.89687856,3508.4,3508.1,0.843]
[1721540680096,0.89687856,3508.5,3508.1,0.843]
[1721540680299,0.89687856,3508.4,3508.1,0.843]
[1721540685456,0.89687856,3508.4,3508.2,0.11196907]
[1721540686532,0.89687856,3508.5,3508.2,0.11196907]
[1721540686941,0.89687856,3508.4,3508.2,0.11196907]
[1721540687935,4.04583293,3508.6,3508.2,0.11196907]
[1721540687936,0.89687856,3508.5,3508.2,0.11196907]
[1721540692472,3.65516293,3508.7,3508.2,0.11196907]
[1721540692473,0.89687856,3508.4,3508.2,0.11196907]
[1721540692676,0.89687856,3508.5,3508.2,0.11196907]
[1721540693487,0.89687856,3508.4,3508.2,0.11196907]
[1721540695001,0.89687856,3508.5,3508.2,0.11196907]
[1721540696992,0.89687856,3508.6,3508.2,0.11196907]
[1721540697203,0.89687856,3508.5,3508.2,0.71913898]
[1721540698006,0.89687856,3508.6,3508.2,0.71913898]
[1721540698200,0.89687856,3508.6,3508.2,0.11196907]
[1721540698498,0.89687856,3508.6,3508.4,2.8503]
[1721540698864,0.89687856,3508.6,3508.5,0.11190709]
[1721540700811,1.19566293,3508.7,3508.5,0.11190709]
[1721540701012,1.19566293,3508.7,3508.3,2.85032]
[1721540701299,0.89672061,3508.6,3508.4,0.11193816]
[1721540705962,0.89672061,3508.6,3508.4,2.96221816]
[1721540706301,0.89672061,3508.6,3508.4,3.85419827]
[1721540706982,0.89672061,3508.6,3508.4,1.00391827]
[1721540707169,0.89672061,3508.6,3508.4,0.11193816]
[1721540707596,0.89672061,3508.6,3508.2,2.85046]
[1721540707793,0.89672061,3508.6,3508.5,0.11189819]
[1721540708010,0.89672061,3508.6,3508.2,2.85046]
[1721540708184,0.89672061,3508.6,3508.5,0.11189819]
[1721540708779,0.89672061,3508.6,3508.2,2.85046]
[1721540709303,0.89672061,3508.6,3508.3,0.11196032]
[1721540709509,0.89672061,3508.5,3508.3,0.11196032]
[1721540709692,0.89672061,3508.6,3508.2,2.85046]
[1721540709892,0.89672061,3508.5,3508.4,0.11192926]
[1721540710195,0.89672061,3508.5,3508.2,2.85046]
[1721540710402,0.89672061,3508.5,3508.4,0.11192926]
[1721540710569,0.89672061,3508.5,3508.3,0.11196032]
[1721540710772,0.89672061,3508.5,3508.4,0.11192926]
[1721540711168,0.89672061,3508.5,3508.2,2.85046]
[1721540711477,0.89672061,3508.5,3508.3,0.11196032]
[1721540711882,0.89672061,3508.5,3508.2,2.85046]
[1721540712188,0.89672061,3508.5,3508.4,0.11192926]
[1721540712411,0.89672061,3508.5,3508.3,0.11196032]
[1721540712581,0.89672061,3508.5,3508.4,0.11192926]
[1721540712965,0.89672061,3508.5,3508.2,2.85046]
[1721540713198,0.89672061,3508.5,3508.4,0.11192926]
[1721540713402,0.89672061,3508.5,3508.3,0.11196032]
[1721540713603,0.89672061,3508.5,3508.4,0.11192926]
[1721540714004,0.89672061,3508.5,3508.2,2.85046]
[1721540714313,0.89672061,3508.5,3508.3,0.11196032]
[1721540714668,0.89672061,3508.5,3508.2,2.85046]
[1721540714870,0.89672061,3508.5,3508.4,0.11192926]
[1721540715283,0.89672061,3508.5,3508.2,2.85046]
[1721540715480,0.89672061,3508.5,3508.4,0.11192926]
[1721540715679,0.89672061,3508.5,3508.2,2.85046]
[1721540716015,0.89672061,3508.5,3508.4,0.11192926]
[1721540716189,0.89672061,3508.5,3508.3,0.11196032]
[1721540716385,0.89672061,3508.5,3508.4,0.11192926]
[1721540716715,0.89672061,3508.5,3508.2,2.85046]
[1721540716884,0.89672061,3508.5,3508.4,0.11193372]
[1721540717089,0.89672061,3508.5,3508.2,2.85046]
[1721540717425,0.89672061,3508.5,3508.4,0.11193372]
[1721540717616,0.89672061,3508.5,3508.3,0.11196479]
[1721540717773,0.89672061,3508.5,3508.4,0.11193372]
[1721540718202,0.89672061,3508.5,3508.2,2.85046]
[1721540718475,0.89672061,3508.5,3508.3,0.11196479]
[1721540718941,0.89672061,3508.5,3508.2,2.85046]
[1721540719098,0.89672061,3508.5,3508.4,0.11193372]
[1721540719306,0.89672061,3508.5,3508.2,2.85046]
[1721540719505,0.89672061,3508.5,3508.4,0.11193372]
[1721540719707,0.89672061,3508.5,3508.3,0.11196479]
[1721540719906,0.89672061,3508.5,3508.2,2.85046]
[1721540720104,0.89672061,3508.5,3508.4,0.11193372]
[1721540720432,0.89672061,3508.5,3508.2,2.85046]
[1721540720588,0.89672061,3508.5,3508.4,0.11193372]
[1721540720790,0.89672061,3508.5,3508.3,0.11196479]
[1721540720990,0.89672061,3508.5,3508.4,0.11193372]
[1721540721432,0.89672061,3508.5,3508.3,2.85038]
[1721540721587,0.89672061,3508.5,3508.4,0.11193372]
[1721540721792,0.89672061,3508.6,3508.4,0.11193372]
[1721540723292,0.89672061,3508.7,3508.4,0.11193372]
[1721540723525,0.89672061,3508.6,3508.4,0.11193372]
[1721540723731,0.89672061,3508.6,3508.4,2.96222372]
[1721540724293,0.89672061,3508.7,3508.4,2.96222372]
[1721540725125,0.89672061,3508.7,3508.5,2.85017]
[1721540725592,0.89672061,3508.7,3508.6,0.1118716]
[1721540732022,0.89672061,3508.7,3508.6,0.13996979]
[1721540733225,1.19566293,3508.7,3508.6,0.13996979]
[1721540733656,1.19566293,3508.7,3508.6,0.13996213]
[1721540734028,1.19566293,3508.7,3508.3,2.85036]
[1721540734553,0.89700956,3508.6,3508.4,0.14002586]
[1721540735779,0.89700956,3508.6,3508.4,2.99031586]
[1721540736264,0.89700956,3508.6,3508.5,3.69322]
[1721540736466,1.49498428,3508.9,3508.6,5.70026]
[1721540736467,0.89700956,3508.7,3508.6,5.70026]
[1721540736668,0.89700956,3509.1,3509.0,2.84981]
[1721540736836,0.89700956,3509.2,3509.1,2.84973]
[1721540737040,0.89700956,3509.3,3509.2,2.84965]
[1721540737466,2.4374,3509.7,3509.2,2.98942546]
[1721540737467,0.89700956,3509.4,3509.2,2.98942546]
[1721540737624,1.19566293,3509.6,3509.2,0.13977546]
[1721540737625,0.89700956,3509.5,3509.2,0.13977546]
[1721540737826,0.89700956,3509.5,3509.4,6.54196]
[1721540738175,0.89700956,3509.8,3509.6,5.12076]
[1721540738462,0.89700956,3510.0,3509.6,5.96376]
[1721540738672,0.89700956,3510.0,3509.7,0.13955502]
[1721540739263,0.89700956,3510.1,3509.7,0.13955502]
[1721540739776,0.89700956,3510.0,3509.7,0.13955502]
[1721540739939,0.89700956,3510.0,3509.5,2.84937]
[1721540740269,0.89700956,3510.0,3509.8,0.1395047]
[1721540740584,0.89700956,3510.0,3509.4,0.843]
[1721540740585,4.48390181,3510.0,3509.9,0.13947286]
[1721540740866,8.06295518,3510.0,3509.9,0.13947286]
[1721540741069,2.84909,3509.9,3509.2,2.84964]
[1721540741368,3.33292343,3509.8,3509.3,0.13966392]
[1721540741668,4.66277432,3509.8,3509.2,2.84964]
[1721540741871,4.66277432,3509.8,3508.7,2.2715]
[1721540741872,0.89552343,3509.7,3508.7,2.2715]
[1721540742033,5.28679,3509.6,3509.3,0.13966711]
[1721540742229,5.28679,3509.6,3508.9,2.84987]
[1721540742782,5.28679,3509.6,3509.0,0.13977541]
[1721540745074,2.4374,3509.6,3509.0,2.98958541]
[1721540745367,6.18208343,3509.8,3509.1,3.1145]
[1721540745528,5.28656,3509.8,3509.1,3.25424993]
[1721540745729,5.28656,3509.8,3509.1,6.10396993]
[1721540747182,0.89552343,3509.9,3509.3,3.69256]
[1721540747342,2.84901,3510.0,3509.3,4.67745435]
[1721540747526,2.84909,3509.9,3509.4,0.13964609]
[1721540747727,3.74461343,3509.9,3509.4,0.13964609]
[1721540747953,3.74461343,3509.9,3509.3,2.84956]
[1721540748153,2.84909,3509.9,3509.3,2.84956]
[1721540750273,2.2955,3509.7,3509.1,2.84972]
[1721540750678,5.14475,3509.7,3509.0,0.843]
[1721540750987,5.14475,3509.7,3509.1,0.13974165]
[1721540750988,2.2955,3509.5,3509.1,0.13974165]
[1721540751281,2.2955,3509.5,3508.7,3.69304]
[1721540751282,2.84952,3509.4,3508.7,3.69304]
[1721540751487,2.84952,3509.4,3508.8,0.13979768]
[1721540751848,2.84963,3509.3,3508.8,0.13979768]